lending/lending_fUSD_20240110
["ID","MTS","AMOUNT","RATE_DAILY","PERIOD"]
[311092899,1704901890901,-1173.1,0.0003452,2]
[311092900,1704901890911,-977.57,0.0003452,2]
[311092901,1704901890922,-500.0,0.0003452,2]
[311092902,1704901890933,-500.0,0.0003452,2]
[311092903,1704901890943,-905.27,0.0003452,2]
[311092904,1704901890953,-2184.67,0.0003452,2]
[311092905,1704901890964,-539.72,0.0003452,2]
[311092906,1704901890974,-258.80081263,0.0003452,2]
[311092907,1704901890985,-2851.32,0.0003452,2]
[311092908,1704901890996,-554.29,0.0003452,2]
[311092909,1704901891007,-1084.11,0.0003452,2]
[311092910,1704901891018,-743.97,0.0003452,2]
[311092911,1704901891030,-500.0,0.0003452,2]
[311092912,1704901891041,-652.69,0.0003452,2]
[311092913,1704901891051,-2290.02,0.0003452,2]
[311092914,1704901891062,-3550.06,0.0003452,2]
[311092915,1704901891072,-500.0,0.0003452,2]
[311092916,1704901891083,-500.0,0.0003452,2]
[311092917,1704901891093,-2468.23,0.0003452,2]
[311092918,1704901891104,-741.58,0.0003452,2]
[311092919,1704901891115,-1013.12,0.0003452,2]
[311092920,1704901891125,-2755.49,0.0003452,2]
[311092921,1704901891136,-1367.5,0.0003452,2]
[311092922,1704901891146,-523.18,0.0003452,2]
[311092923,1704901891156,-606.41,0.0003452,2]
[311092924,1704901891167,-1214.0,0.0003452,2]
[311092925,1704901891177,-1010.49,0.0003452,2]
[311092926,1704901891187,-151.0,0.0003452,7]
[311092927,1704901891197,-1052.82,0.0003452,2]
[311092928,1704901891207,-151.0,0.0003452,7]
[311092929,1704901891217,-1111.49,0.0003452,2]
[311092930,1704901891227,-22537.3,0.0003452,2]
[311092931,1704901891237,-517.3,0.0003452,2]
[311092932,1704901891247,-652.84,0.0003452,2]
[311092933,1704901891258,-1027.93,0.0003452,2]
[311092934,1704901891267,-619.25,0.0003452,2]
[311092935,1704901891279,-540.69,0.0003452,2]
[311092936,1704901891289,-3903.948256,0.0003452,7]
[311092937,1704901891301,-531.22,0.0003452,2]
[311092938,1704901891311,-949.96,0.0003452,2]
[311092939,1704901891321,-3903.948256,0.0003452,7]
[311092940,1704901891332,-822.79,0.0003452,2]
[311092941,1704901891342,-500.0,0.0003452,2]
[311092942,1704901891353,-561.93,0.0003452,2]
[311092943,1704901891363,-841.87,0.0003452,2]
[311092944,1704901891374,-500.0,0.0003452,2]
[311092945,1704901891394,-4149.02,0.0003452,2]
[311092946,1704901891406,-500.0,0.0003452,2]
[311092947,1704901891416,-500.0,0.0003452,2]
[311092948,1704901891427,-588.0,0.0003452,2]
[311092949,1704901891438,-1144.17,0.0003452,2]
[311092950,1704901891448,-1384.54,0.0003452,2]
[311092951,1704901891457,-2853.73,0.0003452,2]
[311092952,1704901891466,-1585.1,0.0003452,2]
[311092953,1704901891477,-565.73,0.0003452,2]
[311092954,1704901891487,-518.12,0.0003452,2]
[311092955,1704901891497,-546.42,0.0003452,2]
[311092956,1704901891507,-5771.71,0.0003452,2]
[311092957,1704901891518,-1094.06,0.0003452,2]
[311092958,1704901891531,-500.0,0.0003452,2]
[311092959,1704901891542,-1075.13,0.0003452,2]
[311092960,1704901891554,-500.0,0.0003452,2]
[311092961,1704901891564,-1529.8,0.0003452,2]
[311092962,1704901891576,-704.92,0.0003452,2]
[311092963,1704901891587,-6554.84,0.0003452,2]
[311092964,1704901891598,-500.0,0.0003452,2]
[311092965,1704901891608,-515.73,0.0003452,2]
[311092966,1704901891619,-606.81,0.0003452,2]
[311092967,1704901891630,-3847.89,0.0003452,2]
[311092968,1704901891641,-1873.06,0.0003452,2]
[311092969,1704901891652,-1237.27,0.0003452,2]
[311092970,1704901891663,-722.18,0.0003452,2]
[311092971,1704901891673,-682.55,0.0003452,2]
[311092972,1704901891684,-890.2,0.0003452,2]
[311092973,1704901891695,-1162.53,0.0003452,2]
[311092974,1704901891706,-1171.63,0.0003452,2]
[311092975,1704901891717,-1201.37,0.0003452,2]
[311092976,1704901891727,-838.5,0.0003452,2]
[311092977,1704901891737,-589.12,0.0003452,2]
[311092978,1704901891749,-1149.89,0.0003452,2]
[311092979,1704901891760,-1798.18,0.0003452,2]
[311092980,1704901891771,-596.51,0.0003452,2]
[311092981,1704901891783,-1893.93,0.0003452,2]
[311092982,1704901891793,-1002.66,0.0003452,2]
[311092983,1704901891803,-860.47,0.0003452,2]
[311092984,1704901891814,-500.0,0.0003452,2]
[311092985,1704901891824,-633.99,0.0003452,2]
[311092986,1704901891835,-542.38,0.0003452,2]
[311092987,1704901891845,-3386.41,0.0003452,2]
[311092988,1704901891856,-756.19,0.0003452,2]
[311092989,1704901891867,-500.0,0.0003452,2]
[311092990,1704901891878,-500.0,0.0003452,2]
[311092991,1704901891889,-816.45,0.0003452,2]
[311092992,1704901891900,-3242.4,0.0003452,2]
[311092993,1704901891911,-6293.78,0.00034521,2]
[311092994,1704901891923,-206.0,0.00034547,17]
[311092995,1704901891934,-500.0,0.00034583,2]
[311092996,1704901891945,-200.0,0.000346,10]
[311092997,1704901891956,-180.0,0.00034658,2]
[311092998,1704901891968,-563.83,0.00034697,2]
[311092999,1704901891980,-153.84,0.00034703,2]
[311093000,1704901891992,-790.5,0.00034703,2]
[311093001,1704901892006,-247.22115209,0.00034714,2]
[311093002,1704901892016,-293.76,0.00034719,2]
[311093003,1704901892029,-151.0,0.00034794,7]
[311093004,1704901892040,-8986.895985,0.00034794,2]
[311093005,1704901892050,-71577.987927,0.00034794,2]
[311093006,1704901892061,-649.73,0.00034794,2]
[311093007,1704901892073,-500.0,0.00034794,2]
[311093008,1704901892084,-493.276557,0.00034794,2]
[311093009,1704901892095,-887.897803,0.00034794,2]
[311093010,1704901892106,-4205.364162,0.00034794,2]
[311093011,1704901892117,-690.58718,0.00034794,2]
[311093012,1704901892129,-5887.509828,0.00034794,2]
[311093013,1704901892140,-500.0,0.00034794,21]
[311093014,1704901892151,-500.0,0.00034794,2]
[311093015,1704901892163,-500.0,0.00034794,2]
[311093016,1704901892173,-580.78,0.00034794,2]
[311093017,1704901892184,-451.01026967,0.00034794,2]
[311093018,1704901892195,-586.6265461,0.00034794,2]
[311093019,1704901892206,-500.0,0.00034794,2]
[311093020,1704901892217,-624.51,0.00034794,2]
[311093021,1704901892227,-769.6,0.00034794,2]
[311093022,1704901892238,-646.9,0.00034794,2]
[311093023,1704901892249,-530.33,0.00034794,2]
[311093024,1704901892259,-815.38,0.00034794,2]
[311093025,1704901892270,-603.48,0.00034794,2]
[311093026,1704901892283,-755.23,0.00034794,2]
[311093027,1704901892293,-500.0,0.00034794,2]
[311093028,1704901892304,-550.99,0.00034794,2]
[311093029,1704901892315,-500.0,0.00034794,2]
[311093030,1704901892327,-500.0,0.00034794,2]
[311093031,1704901892339,-500.0,0.00034794,2]
[311093032,1704901892351,-800.14,0.00034794,2]
[311093033,1704901892362,-707.25,0.00034794,2]
[311093034,1704901892374,-520.54,0.00034794,2]
[311093035,1704901892385,-500.0,0.00034794,2]
[311093036,1704901892396,-672.75,0.00034794,2]
[311093037,1704901892407,-528.46,0.00034794,2]
[311093038,1704901892418,-1198.47,0.00034794,2]
[311093039,1704901892428,-544.34624849,0.00034794,2]
[311093040,1704901892439,-632.59,0.00034794,2]
[311093041,1704901892451,-1056.6,0.00034794,2]
[311093042,1704901892463,-586.76,0.00034794,2]
[311093043,1704901892474,-731.92,0.00034794,2]
[311093044,1704901892486,-9210.75,0.00034794,2]
[311093045,1704901892497,-809.77,0.00034794,2]
[311093046,1704901892508,-663.73,0.00034794,2]
[311093047,1704901892519,-662.54,0.00034794,2]
[311093048,1704901892534,-500.0,0.00034794,2]
[311093049,1704901892544,-534.71,0.00034794,2]
[311093050,1704901892555,-6627.1,0.00034794,2]
[311093051,1704901892565,-1891.17,0.00034794,2]
[311093052,1704901892575,-1534.85,0.00034794,2]
[311093053,1704901892585,-500.0,0.00034794,2]
[311093054,1704901892596,-152.47068963,0.00034794,2]
[311093055,1704901892607,-2924.88,0.00034794,2]
[311093056,1704901892618,-765.82,0.00034794,2]
[311093057,1704901892629,-500.0,0.00034794,2]
[311093058,1704901892640,-500.0,0.00034794,2]
[311093059,1704901892651,-3449.62,0.00034794,2]
[311093060,1704901892662,-750.66,0.00034794,2]
[311093061,1704901892673,-579.7,0.00034794,2]
[311093062,1704901892684,-959.31,0.00034794,2]
[311093063,1704901892695,-7311.05,0.00034794,2]
[311093064,1704901892706,-1065.45,0.00034794,2]
[311093065,1704901892717,-478.79190356,0.00034794,2]
[311093066,1704901892728,-1035.64,0.00034794,2]
[311093067,1704901892739,-500.0,0.00034794,2]
[311093068,1704901892750,-2187.38,0.00034794,2]
[311093069,1704901892760,-500.0,0.00034794,2]
[311093070,1704901892771,-702.32,0.00034794,2]
[311093071,1704901892784,-500.0,0.00034794,2]
[311093072,1704901892795,-500.0,0.00034794,2]
[311093073,1704901892806,-1173.1,0.00034794,2]
[311093074,1704901892817,-977.57,0.00034794,2]
[311093075,1704901892828,-500.0,0.00034794,2]
[311093076,1704901892839,-500.0,0.00034794,2]
[311093077,1704901892850,-905.27,0.00034794,2]
[311093078,1704901892861,-539.72,0.00034794,2]
[311093079,1704901892871,-2184.67,0.00034794,2]
[311093080,1704901892883,-2851.32,0.00034794,2]
[311093081,1704901892894,-554.29,0.00034794,2]
[311093082,1704901892905,-1084.11,0.00034794,2]
[311093083,1704901892916,-743.97,0.00034794,2]
[311093084,1704901892927,-652.69,0.00034794,2]
[311093085,1704901892938,-500.0,0.00034794,2]
[311093086,1704901892949,-2290.02,0.00034794,2]
[311093087,1704901892961,-3550.06,0.00034794,2]
[311093088,1704901892972,-500.0,0.00034794,2]
[311093089,1704901892983,-500.0,0.00034794,2]
[311093090,1704901892994,-741.58,0.00034794,2]
[311093091,1704901893006,-2468.23,0.00034794,2]
[311093092,1704901893017,-1013.12,0.00034794,2]
[311093093,1704901893031,-2755.49,0.00034794,2]
[311093094,1704901893042,-1367.5,0.00034794,2]
[311093095,1704901893053,-523.18,0.00034794,2]
[311093096,1704901893065,-606.41,0.00034794,2]
[311093097,1704901893076,-1214.0,0.00034794,2]
[311093098,1704901893088,-1010.49,0.00034794,2]
[311093099,1704901893098,-1052.82,0.00034794,2]
[311093100,1704901893109,-1111.49,0.00034794,2]
[311093101,1704901893120,-517.3,0.00034794,2]
[311093102,1704901893132,-22537.3,0.00034794,2]
[311093103,1704901893143,-652.84,0.00034794,2]
[311093104,1704901893154,-1027.93,0.00034794,2]
[311093105,1704901893164,-619.25,0.00034794,2]
[311093106,1704901893175,-540.69,0.00034794,2]
[311093107,1704901893186,-531.22,0.00034794,2]
[311093108,1704901893197,-949.96,0.00034794,2]
[311093109,1704901893208,-822.79,0.00034794,2]
[311093110,1704901893218,-500.0,0.00034794,2]
[311093111,1704901893229,-561.93,0.00034794,2]
[311093112,1704901893241,-841.87,0.00034794,2]
[311093113,1704901893252,-500.0,0.00034794,2]
[311093114,1704901893263,-500.0,0.00034794,2]
[311093115,1704901893276,-4149.02,0.00034794,2]
[311093116,1704901893286,-231.29582619,0.00034794,2]
[311093117,1704901893297,-589.06014977,0.00034794,2]
[311093118,1704901893307,-1144.17,0.00034794,2]
[311093119,1704901893318,-1384.54,0.00034794,2]
[311093120,1704901893329,-2853.73,0.00034794,2]
[311093121,1704901893339,-1585.1,0.00034794,2]
[311093122,1704901893350,-565.73,0.00034794,2]
[311093123,1704901893361,-518.12,0.00034794,2]
[311093124,1704901893373,-546.42,0.00034794,2]
[311093125,1704901893384,-5771.71,0.00034794,2]
[311093126,1704901893396,-1094.06,0.00034794,2]
[311093127,1704901893406,-500.0,0.00034794,2]
[311093128,1704901893418,-1075.13,0.00034794,2]
[311093129,1704901893429,-500.0,0.00034794,2]
[311093130,1704901893439,-1529.8,0.00034794,2]
[311093131,1704901893451,-704.92,0.00034794,2]
[311093132,1704901893462,-6554.84,0.00034794,2]
[311093133,1704901893472,-500.0,0.00034794,2]
[311093134,1704901893483,-515.73,0.00034794,2]
[311093135,1704901893493,-606.81,0.00034794,2]
[311093136,1704901893503,-3847.89,0.00034794,2]
[311093137,1704901893514,-1873.06,0.00034794,2]
[311093138,1704901893528,-1237.27,0.00034794,2]
[311093139,1704901893539,-722.18,0.00034794,2]
[311093140,1704901893551,-682.55,0.00034794,2]
[311093141,1704901893563,-890.2,0.00034794,2]
[311093142,1704901893576,-1162.53,0.00034794,2]
[311093143,1704901893587,-1171.63,0.00034794,2]
[311093144,1704901893599,-1201.37,0.00034794,2]
[311093145,1704901893611,-838.5,0.00034794,2]
[311093146,1704901893622,-589.12,0.00034794,2]
[311093147,1704901893634,-1149.89,0.00034794,2]
[311093148,1704901893645,-1798.18,0.00034794,2]
[311093149,1704901893656,-596.51,0.00034794,2]
[311093150,1704901893668,-1893.93,0.00034794,2]
[311093151,1704901893681,-1002.66,0.00034794,2]
[311093152,1704901893692,-860.47,0.00034794,2]
[311093153,1704901893703,-500.0,0.00034794,2]
[311093154,1704901893714,-633.99,0.00034794,2]
[311093155,1704901893726,-542.38,0.00034794,2]
[311093156,1704901893738,-3386.41,0.00034794,2]
[311093157,1704901893749,-500.0,0.00034794,2]
[311093158,1704901893761,-756.19,0.00034794,2]
[311093159,1704901893783,-500.0,0.00034794,2]
[311093160,1704901893802,-3242.4,0.00034794,2]
[311093161,1704901893814,-816.45,0.00034794,2]
[311093162,1704901893826,-200.0,0.000348,10]
[311093163,1704901893839,-152.0,0.00034804,5]
[311093164,1704901893851,-500.0,0.00034816,2]
[311093165,1704901893863,-429.08,0.00034822,2]
[311093166,1704901893874,-420.0,0.00034874,10]
[311093167,1704901893885,-210.0,0.0003488,2]
[311093168,1704901893896,-1919.71483849,0.000349,7]
[311093169,1704901893908,-4135.17402633,0.000349,2]
[311093170,1704901893921,-4135.17402628,0.000349,2]
[311093171,1704901893934,-4135.17402628,0.000349,2]
[311093172,1704901894186,-1925.49640369,0.000349,2]
[311093173,1704901894198,-1925.49640363,0.000349,2]
[311093174,1704901894209,-1925.49640363,0.000349,2]
[311093175,1704901894220,-1925.49640363,0.000349,2]
[311093176,1704901894230,-1925.49640363,0.000349,2]
[311093177,1704901894241,-11982.52798,0.00034931,2]
[311093178,1704901894251,-95437.317236,0.00034931,2]
[311093179,1704901894261,-657.702076,0.00034931,2]
[311093180,1704901894270,-1183.863737,0.00034931,2]
[311093181,1704901894285,-5607.152217,0.00034931,2]
[311093182,1704901894295,-920.782907,0.00034931,2]
[311093183,1704901894305,-7850.013104,0.00034931,2]
[311093184,1704901894316,-673.9910084,0.00034976,2]
[311093185,1704901894326,-597.71867679,0.0003498,3]
[311093186,1704901894336,-315.0,0.0003498,3]
[311093187,1704901894346,-157.5,0.0003498,3]
[311093188,1704901894356,-535.68348108,0.0003498,3]
[311093189,1704901894366,-1452.37198186,0.0003499,8]
[311093190,1704901894376,-100000.0,0.00035,3]
[311093191,1704901894387,-1976.84682895,0.00035,2]
[311093192,1704901894396,-2691.94852448,0.00035,7]
[311093193,1704901894405,-4736.38649309,0.00035,2]
[311093194,1704901894415,-1000.0,0.00035,2]
[311093195,1704901894425,-150.0,0.00035,7]
[311093196,1704901894434,-3656.48033142,0.00035,7]
[311093197,1704901894445,-164.0,0.00035,2]
[311093198,1704901894456,-1565.25371549,0.00035,4]
[311093199,1704901894465,-155.79206309,0.00035,4]
[311093200,1704901894475,-447.49364629,0.00035,4]
[311093201,1704901894485,-169.98334135,0.00035,4]
[311093202,1704901894495,-1267.82909232,0.00035,4]
[311093203,1704901894505,-618.91284731,0.00035,4]
[311093204,1704901894516,-12271.38939123,0.00035,2]
[311093205,1704901894529,-5000.0,0.00035,2]
[311093206,1704901894539,-155.0,0.00035,2]
[311093207,1704901894550,-2500.0,0.00035,2]
[311093208,1704901894561,-2000.0,0.00035,3]
[311093209,1704901894573,-9211.22776339,0.00035,2]
[311093210,1704901894583,-25000.0,0.00035,2]
[311093211,1704901894594,-208348.64219513,0.00035,4]
[311093212,1704901894604,-296.35627918,0.00035,4]
[311093213,1704901894615,-600.0,0.00035,3]
[311093214,1704901894626,-164.0,0.00035,2]
[311093215,1704901894636,-164.0,0.00035,2]
[311093216,1704901894647,-10000.0,0.00035,2]
[311093217,1704901894658,-207.210858,0.00035,7]
[311093218,1704901894670,-178.61013835,0.00035,2]
[311093219,1704901894681,-178.61013835,0.00035,2]
[311093220,1704901894692,-178.61013835,0.00035,2]
[311093221,1704901894703,-178.61013835,0.00035,2]
[311093222,1704901894714,-178.61013835,0.00035,2]
[311093223,1704901894725,-178.61013835,0.00035,2]
[311093224,1704901894736,-178.61013835,0.00035,2]
[311093225,1704901894747,-178.61013835,0.00035,2]
[311093226,1704901894758,-178.61013835,0.00035,2]
[311093227,1704901894769,-178.61013835,0.00035,2]
[311093228,1704901894782,-178.61013835,0.00035,2]
[311093229,1704901894793,-178.61013835,0.00035,2]
[311093230,1704901894803,-178.61013835,0.00035,2]
[311093231,1704901894814,-178.61013835,0.00035,2]
[311093232,1704901894825,-178.61013835,0.00035,2]
[311093233,1704901894835,-178.61013835,0.00035,2]
[311093234,1704901894846,-178.61013835,0.00035,2]
[311093235,1704901894857,-178.61013835,0.00035,2]
[311093236,1704901894868,-178.61013835,0.00035,2]
[311093237,1704901894879,-178.61013835,0.00035,2]
[311093238,1704901894890,-178.61013835,0.00035,2]
[311093239,1704901894902,-178.61013835,0.00035,2]
[311093240,1704901894912,-178.61013835,0.00035,2]
[311093241,1704901894923,-178.61013835,0.00035,2]
[311093242,1704901894935,-263.279856,0.00035,7]
[311093243,1704901894946,-178.61013835,0.00035,2]
[311093244,1704901894958,-178.61013835,0.00035,2]
[311093245,1704901894969,-178.61013835,0.00035,2]
[311093246,1704901894981,-178.61013835,0.00035,2]
[311093247,1704901894993,-178.61013835,0.00035,2]
[311093248,1704901895003,-178.61013835,0.00035,2]
[311093249,1704901895014,-178.61013835,0.00035,2]
[311093250,1704901895029,-178.61013835,0.00035,2]
[311093251,1704901895040,-178.61013835,0.00035,2]
[311093252,1704901895052,-178.61013835,0.00035,2]
[311093253,1704901895063,-178.61013835,0.00035,2]
[311093254,1704901895074,-178.61013835,0.00035,2]
[311093255,1704901895086,-178.61013835,0.00035,2]
[311093256,1704901895097,-178.61013835,0.00035,2]
[311093257,1704901895109,-178.61013835,0.00035,2]
[311093258,1704901895120,-178.61013835,0.00035,2]
[311093259,1704901895132,-178.61013835,0.00035,2]
[311093260,1704901895143,-178.61013835,0.00035,2]
[311093261,1704901895154,-178.61013835,0.00035,2]
[311093262,1704901895166,-178.61013835,0.00035,2]
[311093263,1704901895178,-178.61013835,0.00035,2]
[311093264,1704901895189,-178.61013835,0.00035,2]
[311093265,1704901895200,-178.61013835,0.00035,2]
[311093266,1704901895212,-178.61013835,0.00035,2]
[311093267,1704901895223,-178.61013835,0.00035,2]
[311093268,1704901895234,-178.61013835,0.00035,2]
[311093269,1704901895246,-263.279856,0.00035,7]
[311093270,1704901895257,-500.0,0.00035,3]
[311093271,1704901895269,-3000.0,0.00035,2]
[311093272,1704901895286,-151.0,0.00035,7]
[311093273,1704901895297,-151.0,0.00035,7]
[311093274,1704901895308,-3903.948256,0.00035,7]
[311093275,1704901895319,-3903.948256,0.00035,7]
[311093276,1704901895330,-38783.90420931,0.00035,2]
[311093277,1704901895341,-38783.90420931,0.00035,2]
[311093278,1704901895352,-1755.57760652,0.00035,2]
[311093279,1704901895365,-1755.57760652,0.00035,2]
[311093280,1704901895376,-1755.57760652,0.00035,2]
[311093281,1704901895388,-1755.57760652,0.00035,2]
[311093282,1704901895399,-1755.57760652,0.00035,2]
[311093283,1704901895413,-1755.57760652,0.00035,2]
[311093284,1704901895425,-1755.57760652,0.00035,2]
[311093285,1704901895436,-1755.57760652,0.00035,2]
[311093286,1704901895447,-1755.57760652,0.00035,2]
[311093287,1704901895458,-1755.57760652,0.00035,2]
[311093288,1704901895470,-1755.57760652,0.00035,2]
[311093289,1704901895482,-1755.57760652,0.00035,2]
[311093290,1704901895493,-1755.57760652,0.00035,2]
[311093291,1704901895507,-1755.57760652,0.00035,2]
[311093292,1704901895518,-1755.57760652,0.00035,2]
[311093293,1704901895534,-1755.57760652,0.00035,2]
[311093294,1704901895546,-1755.57760652,0.00035,2]
[311093295,1704901895557,-1755.57760652,0.00035,2]
[311093296,1704901895568,-1755.57760652,0.00035,2]
[311093297,1704901895579,-1755.57760652,0.00035,2]
[311093298,1704901895589,-1755.57760652,0.00035,2]
[311093299,1704901895600,-1755.57760652,0.00035,2]
[311093300,1704901895610,-1755.57760652,0.00035,2]
[311093301,1704901895620,-1755.57760652,0.00035,2]
[311093302,1704901895631,-1755.57760652,0.00035,2]
[311093303,1704901895642,-1755.57760652,0.00035,2]
[311093304,1704901895652,-1755.57760652,0.00035,2]
[311093305,1704901895663,-1755.57760652,0.00035,2]
[311093306,1704901895675,-1755.57760652,0.00035,2]
[311093307,1704901895685,-1755.57760652,0.00035,2]
[311093308,1704901895696,-1755.57760652,0.00035,2]
[311093309,1704901895709,-1755.57760652,0.00035,2]
[311093310,1704901895720,-1755.57760652,0.00035,2]
[311093311,1704901895732,-1755.57760652,0.00035,2]
[311093312,1704901895743,-1755.57760652,0.00035,2]
[311093313,1704901895756,-1755.57760652,0.00035,2]
[311093314,1704901895767,-1755.57760652,0.00035,2]
[311093315,1704901895782,-1755.57760652,0.00035,2]
[311093316,1704901895793,-1755.57760652,0.00035,2]
[311093317,1704901895804,-1755.57760652,0.00035,2]
[311093318,1704901895815,-1755.57760652,0.00035,2]
[311093319,1704901895827,-1755.57760652,0.00035,2]
[311093320,1704901895839,-1755.57760652,0.00035,2]
[311093321,1704901895850,-1755.57760652,0.00035,2]
[311093322,1704901895863,-1755.57760652,0.00035,2]
[311093323,1704901895873,-1755.57760652,0.00035,2]
[311093324,1704901895885,-1755.57760652,0.00035,2]
[311093325,1704901895895,-1755.57760652,0.00035,2]
[311093326,1704901895906,-1755.57760652,0.00035,2]
[311093327,1704901895916,-1755.57760652,0.00035,2]
[311093328,1704901895927,-1755.57760652,0.00035,2]
[311093329,1704901895938,-1755.57760652,0.00035,2]
[311093330,1704901895949,-1755.57760652,0.00035,2]
[311093331,1704901895960,-1755.57760652,0.00035,2]
[311093332,1704901895970,-1755.57760652,0.00035,2]
[311093333,1704901895985,-1755.57760652,0.00035,2]
[311093334,1704901895996,-1755.57760652,0.00035,2]
[311093335,1704901896008,-1755.57760652,0.00035,2]
[311093336,1704901896020,-1755.57760652,0.00035,2]
[311093337,1704901896036,-1755.57760652,0.00035,2]
[311093338,1704901896047,-1755.57760652,0.00035,2]
[311093339,1704901896058,-1755.57760652,0.00035,2]
[311093340,1704901896070,-1755.57760652,0.00035,2]
[311093341,1704901896082,-1755.57760652,0.00035,2]
[311093342,1704901896094,-1755.57760652,0.00035,2]
[311093343,1704901896105,-1755.57760652,0.00035,2]
[311093344,1704901896115,-1755.57760652,0.00035,2]
[311093345,1704901896126,-1755.57760652,0.00035,2]
[311093346,1704901896138,-1755.57760652,0.00035,2]
[311093347,1704901896149,-1755.57760652,0.00035,2]
[311093348,1704901896159,-1755.57760652,0.00035,2]
[311093349,1704901896170,-1755.57760652,0.00035,2]
[311093350,1704901896181,-1755.57760652,0.00035,2]
[311093351,1704901896192,-1755.57760652,0.00035,2]
[311093352,1704901896202,-1755.57760652,0.00035,2]
[311093353,1704901896213,-1755.57760652,0.00035,2]
[311093354,1704901896224,-1755.57760652,0.00035,2]
[311093355,1704901896238,-1755.57760652,0.00035,2]
[311093356,1704901896249,-1755.57760652,0.00035,2]
[311093357,1704901896261,-1755.57760652,0.00035,2]
[311093358,1704901896272,-1755.57760652,0.00035,2]
[311093359,1704901896286,-1755.57760652,0.00035,2]
[311093360,1704901896296,-1755.57760652,0.00035,2]
[311093361,1704901896306,-1755.57760652,0.00035,2]
[311093362,1704901896316,-1755.57760652,0.00035,2]
[311093363,1704901896326,-1755.57760652,0.00035,2]
[311093364,1704901896336,-1755.57760652,0.00035,2]
[311093365,1704901896346,-1755.57760652,0.00035,2]
[311093366,1704901896357,-1755.57760652,0.00035,2]
[311093367,1704901896367,-1755.57760652,0.00035,2]
[311093368,1704901896377,-1755.57760652,0.00035,2]
[311093369,1704901896388,-1755.57760652,0.00035,2]
[311093370,1704901896398,-1755.57760652,0.00035,2]
[311093371,1704901896409,-1755.57760652,0.00035,2]
[311093372,1704901896421,-1755.57760652,0.00035,2]
[311093373,1704901896432,-1755.57760652,0.00035,2]
[311093374,1704901896443,-1755.57760652,0.00035,2]
[311093375,1704901896454,-241.8,0.00035,10]
[311093376,1704901896465,-3000.0,0.0003501,2]
[311093377,1704901896475,-450.0,0.0003502,3]
[311093378,1704901896486,-450.0,0.0003502,3]
[311093379,1704901896496,-3000.0,0.0003502,2]
[311093380,1704901896508,-3000.0,0.0003503,2]
[311093381,1704901896518,-5192.235475,0.0003504,2]
[311093382,1704901896532,-381.2042514,0.00035044,2]
[311093383,1704901896543,-278.792974,0.00035044,2]
[311093384,1704901896554,-1098.3879091,0.00035044,2]
[311093385,1704901896564,-410.7529199,0.00035044,2]
[311093386,1704901896575,-44789.3654346,0.00035044,2]
[311093387,1704901896586,-569.2557219,0.00035044,2]
[311093388,1704901896596,-500.0,0.00035049,2]
[311093389,1704901896606,-500.0,0.00035058,2]
[311093390,1704901896616,-1833.27,0.00035068,2]
[311093391,1704901896626,-151.0,0.00035068,7]
[311093392,1704901896638,-14978.159975,0.00035068,2]
[311093393,1704901896649,-119296.646546,0.00035068,2]
[311093394,1704901896659,-649.73,0.00035068,2]
[311093395,1704901896669,-500.0,0.00035068,2]
[311093396,1704901896747,-822.127595,0.00035068,2]
[311093397,1704901896757,-1479.829672,0.00035068,2]
[311093398,1704901896767,-7008.940271,0.00035068,2]